bitfinex/quotes_ETHUSD_20240709
["timestamp","ask_amount","ask_price","bid_price","bid_amount"]
[1720502966771,0.50051518,3075.0,3073.2,2.2674]
[1720502966772,1.41991656,3074.9,3073.2,2.2674]
[1720502966978,0.19204317,3074.8,3073.2,2.2674]
[1720502967150,2.4585,3075.1,3073.2,2.2674]
[1720502967486,1.41990621,3075.0,3073.2,2.2674]
[1720502967633,1.41990621,3075.0,3073.3,1.68239237]
[1720502967840,2.4585,3075.1,3073.4,1.13239237]
[1720502968179,0.34787716,3075.0,3073.5,0.55]
[1720502968545,0.34787716,3075.0,3073.4,0.55]
[1720502971553,2.4995,3074.9,3073.4,0.55]
[1720502976689,2.4995,3074.9,3073.5,1.701]
[1720502976986,2.4995,3074.9,3073.6,0.55]
[1720502979912,2.4995,3074.9,3073.7,1.13220622]
[1720502980065,2.4995,3074.9,3073.8,0.55]
[1720502980480,2.4995,3074.9,3073.6,0.55]
[1720502980903,2.4995,3074.9,3073.7,1.13222028]
[1720502981108,2.4995,3074.9,3073.8,0.55]
[1720502981266,2.4995,3074.9,3073.9,1.76605048]
[1720502981473,2.4995,3074.9,3074.0,0.55]
[1720502986294,2.4995,3074.9,3073.7,3.0]
[1720502986504,2.4995,3074.9,3073.5,2.38114508]
[1720502986505,2.74945,3074.9,3073.5,1.701]
[1720502987576,1.1268793,3074.8,3073.5,1.701]
[1720502987776,2.74945,3074.9,3073.6,0.55]
[1720502988077,1.40182701,3074.8,3073.6,0.55]
[1720502988411,8.37822708,3075.4,3073.6,0.55]
[1720502988412,3.56430752,3074.7,3073.6,0.55]
[1720502988614,2.4374,3074.7,3073.6,0.55]
[1720502991480,1.12695381,3074.6,3073.3,3.0]
[1720502991712,2.4374,3074.7,3073.2,5.2674]
[1720502991713,0.35643538,3074.5,3073.2,5.2674]
[1720502991912,0.35643538,3074.5,3073.3,1.13242937]
[1720502992150,0.35643538,3074.5,3073.3,4.13242937]
[1720502992442,2.4663,3074.4,3073.3,3.0]
[1720502992740,2.4663,3074.4,3073.2,3.0]
[1720502992942,2.4663,3074.4,3073.3,1.6824117]
[1720502993104,2.4663,3074.4,3073.3,0.55]
[1720502993308,2.4663,3074.4,3073.4,1.13237358]
[1720502993727,2.4663,3074.4,3073.3,0.55]
[1720502994305,2.4663,3074.4,3073.4,1.13241032]
[1720502994802,2.4663,3074.4,3073.3,0.55]
[1720502995203,2.4663,3074.4,3073.4,1.13242083]
[1720502995509,2.4663,3074.4,3073.3,0.55]
[1720502995728,2.4663,3074.4,3073.4,1.13241894]
[1720502995938,2.71293,3074.4,3073.4,1.13241894]
[1720502997049,2.71293,3074.4,3073.2,3.0]
[1720502997207,2.71293,3074.4,3073.3,1.13250305]
[1720502997406,2.71293,3074.4,3073.2,3.0]
[1720502997749,0.271293,3074.3,3073.1,6.39963096]
[1720502997906,0.271293,3074.3,3073.2,1.132512]
[1720502998102,0.271293,3074.3,3073.0,0.68137968]
[1720502998103,2.27,3074.2,3073.0,2.38001064]
[1720502998417,2.27,3074.2,3072.8,1.02206953]
[1720502998418,2.27,3074.2,3073.1,1.13254209]
[1720502998616,2.27,3074.2,3073.0,0.68137968]
[1720502998824,0.227,3074.1,3073.1,1.13253076]
[1720502999024,0.227,3074.1,3073.0,2.38090705]
[1720502999233,2.27,3074.2,3073.1,2.83135613]
[1720502999407,2.27,3074.2,3073.2,3.57853391]
[1720502999606,2.27,3074.2,3073.3,4.12853238]
[1720502999852,2.27,3074.2,3073.4,2.8310674]
[1720503000006,2.27,3074.2,3073.5,1.13242696]
[1720503000208,2.27,3074.2,3073.6,0.06506387]
[1720503000527,2.3779,3074.7,3073.7,3.38092774]
[1720503000727,2.3779,3074.7,3073.8,3.57809486]
[1720503000926,2.3779,3074.7,3073.7,1.57316635]
[1720503000927,2.3779,3074.7,3073.9,2.83092774]
[1720503001241,2.3779,3074.7,3074.0,1.13228455]
[1720503001445,2.3779,3074.7,3074.0,0.06505416]
[1720503002112,2.3779,3074.7,3074.0,1.76345694]
[1720503002306,2.3779,3074.7,3074.1,1.1322542]
[1720503002516,2.3779,3074.7,3074.0,0.06505416]
[1720503002738,2.3779,3074.7,3074.1,1.13225546]
[1720503002942,2.3779,3074.7,3074.0,0.06505416]
[1720503003250,2.3779,3074.7,3074.1,1.13225837]
[1720503003423,2.3779,3074.7,3073.9,0.6821109]
[1720503003621,2.3779,3074.7,3074.0,2.8306454]
[1720503003825,2.3779,3074.7,3073.9,0.6821109]
[1720503004128,2.3779,3074.7,3074.0,2.83067882]
[1720503004336,2.3779,3074.7,3074.1,2.83057682]
[1720503004535,2.3779,3074.7,3074.2,1.19728482]
[1720503004722,7.36,3075.1,3074.3,2.89559178]
[1720503004723,9.6949,3075.1,3074.3,2.89559178]
[1720503004920,2.3349,3075.1,3074.4,3.51265513]
[1720503005105,10.97874524,3075.7,3074.5,2.8955841]
[1720503005309,2.3349,3075.6,3074.7,0.6821109]
[1720503005511,2.3349,3075.6,3074.8,4.12768742]
[1720503005709,2.3349,3075.6,3074.9,2.83054423]
[1720503005944,2.3349,3075.6,3075.0,2.83008282]
[1720503006130,2.3349,3075.6,3074.9,1.69786263]
[1720503006338,2.3349,3075.6,3075.0,1.13188423]
[1720503006559,2.3349,3075.6,3074.8,1.2321109]
[1720503006846,2.3349,3075.6,3074.9,2.82972845]
[1720503007056,2.3349,3075.6,3075.0,1.13189138]
[1720503007379,2.4864,3076.0,3074.9,1.6978508]
[1720503007667,8.72100424,3076.3,3075.1,2.44807712]
[1720503007668,7.36,3076.3,3075.1,2.44807712]
[1720503007810,2.2734,3076.4,3075.2,4.06170835]
[1720503008167,2.2734,3076.8,3075.6,0.68204485]
[1720503008464,2.2734,3076.8,3075.7,0.61500968]
[1720503008614,2.2734,3076.8,3075.8,0.06500961]
[1720503008811,2.2734,3076.8,3075.9,0.55]
[1720503009037,3.23674,3076.8,3075.7,0.55]
[1720503009344,2.2734,3076.8,3075.8,1.19650649]
[1720503009544,2.2734,3076.8,3075.9,0.55]
[1720503010322,2.2734,3076.8,3075.7,0.55]
[1720503010716,2.4603,3077.3,3075.9,1.701]
[1720503010921,2.4603,3077.3,3076.0,0.61500219]
[1720503012863,3.44233,3077.3,3076.0,0.55]
[1720503013047,3.44233,3077.3,3075.8,0.55]
[1720503013357,2.4846,3077.2,3075.5,1.701]
[1720503013915,2.4846,3077.2,3075.2,0.16804331]
[1720503014135,2.3913,3076.7,3074.5,2.37721216]
[1720503014368,1.959,3076.8,3074.3,0.16232777]
[1720503014369,2.3913,3076.4,3074.3,0.16232777]
[1720503014671,3.66,3076.5,3074.1,1.701]
[1720503014672,1.41944992,3076.3,3074.1,1.701]
[1720503014854,2.3913,3076.2,3074.1,1.86688337]
[1720503015152,2.3913,3076.2,3074.1,1.701]
[1720503015363,0.23913,3076.1,3074.1,1.701]
[1720503015520,2.3913,3076.0,3074.1,1.701]
[1720503018020,2.3913,3076.0,3074.2,0.55]
[1720503018982,0.23913,3076.1,3073.4,2.4565]
[1720503018983,4.1594,3075.6,3073.4,2.4565]
[1720503019270,3.67573921,3075.5,3073.7,1.701]
[1720503019571,3.67573921,3075.5,3073.4,2.4565]
[1720503019572,2.4845,3075.4,3073.4,2.4565]
[1720503020531,2.4845,3075.4,3073.7,1.701]
[1720503020732,0.61602392,3075.3,3073.8,0.06505204]
[1720503021165,0.61602392,3075.3,3073.7,1.701]
[1720503021742,0.61602392,3075.3,3073.5,3.0]
[1720503021743,2.2628,3075.2,3073.5,3.0]
[1720503021941,2.2628,3075.2,3073.4,2.4565]
[1720503022146,0.28788239,3075.1,3073.4,2.4565]
[1720503022348,2.2628,3075.2,3073.7,1.701]
[1720503022665,2.2628,3075.2,3073.8,0.06504584]
[1720503023032,2.2628,3075.2,3073.9,0.55]
[1720503023247,2.2628,3075.2,3074.0,0.06504585]
[1720503023466,2.2628,3075.2,3074.1,0.55]
[1720503023669,2.48908,3075.2,3074.1,0.55]
[1720503023967,2.48908,3075.2,3073.8,3.0]
[1720503023968,2.48908,3075.2,3073.9,0.55]
[1720503024339,2.48908,3075.2,3073.8,0.55]
[1720503025069,2.48908,3075.2,3073.3,1.701]
[1720503025386,0.248908,3075.1,3073.3,1.701]
[1720503025539,2.2957,3075.0,3073.3,1.701]
[1720503026638,2.2957,3075.0,3073.4,0.55]
[1720503028583,2.2957,3075.0,3073.5,0.06505759]
[1720503028880,2.59799206,3075.7,3073.7,1.701]
[1720503029181,3.39939921,3075.6,3074.1,1.701]
[1720503029378,3.39939921,3075.6,3074.2,0.06503842]
[1720503029536,3.39939921,3075.6,3074.3,0.55]
[1720503029936,3.39939921,3075.6,3074.2,0.55]
[1720503030568,2.4036,3075.6,3074.2,0.55]
[1720503031143,2.4036,3075.6,3073.7,4.701]
[1720503031360,2.4036,3075.6,3073.8,0.55]
[1720503031659,2.4036,3075.6,3073.8,0.06504873]
[1720503031872,2.4036,3075.6,3074.1,1.701]
[1720503032181,2.4036,3075.6,3074.2,0.06503303]
[1720503032480,2.4036,3075.6,3074.2,2.259]
[1720503032876,7.36,3076.2,3075.0,1.701]
[1720503032877,2.3831,3076.0,3075.0,1.701]
[1720503033172,2.3831,3076.4,3075.4,1.701]
[1720503033505,7.36,3076.7,3075.1,0.55]
[1720503033506,7.36,3076.7,3075.5,0.55]
[1720503033795,2.455,3076.9,3075.8,1.701]
[1720503033944,2.455,3076.9,3075.9,0.6150041]
[1720503034471,2.455,3076.9,3075.9,0.55]
[1720503034853,2.455,3076.9,3075.6,0.55]
[1720503035166,2.7005,3076.9,3075.6,0.55]
[1720503035971,2.7005,3076.9,3075.1,3.0]
[1720503036173,2.7005,3076.9,3075.2,0.55]
[1720503036375,2.7005,3076.9,3075.1,3.55]
[1720503036577,0.27005,3076.8,3075.1,0.55]
[1720503036776,0.27005,3076.8,3075.2,3.0]
[1720503036969,0.27005,3076.8,3075.3,0.55]
[1720503037377,0.27005,3076.8,3075.2,0.55]
[1720503037581,0.272505,3076.7,3075.2,0.55]
[1720503038287,0.272505,3076.7,3075.1,3.0]
[1720503038288,2.403,3076.6,3075.1,3.0]
[1720503038491,2.403,3076.6,3074.9,2.262]
[1720503039603,2.403,3076.6,3075.0,0.55]
[1720503039758,2.403,3076.6,3075.0,3.55]
[1720503040296,2.403,3076.6,3075.1,0.06502423]
[1720503040455,2.403,3076.6,3075.2,0.55]
[1720503041282,2.403,3076.6,3075.3,2.43201641]
[1720503041458,2.403,3076.6,3075.4,0.55]
[1720503043091,2.403,3076.6,3075.1,0.55]
[1720503044862,2.403,3076.6,3075.2,0.065017]
[1720503045073,2.403,3076.6,3075.3,0.61501199]
[1720503046482,2.403,3076.6,3075.3,0.55]
[1720503046690,2.403,3076.6,3075.3,0.06501211]
[1720503046998,2.403,3076.6,3075.4,0.55]
[1720503048003,2.403,3076.6,3075.1,0.55]
[1720503048198,2.403,3076.6,3075.1,2.36016444]
[1720503048390,2.403,3076.6,3075.2,1.13155907]
[1720503048605,2.403,3076.6,3075.3,0.55]
[1720503048812,2.403,3076.6,3075.3,1.68156724]
[1720503049115,2.403,3076.6,3075.3,0.61501536]
[1720503049316,2.403,3076.6,3075.4,1.1315207]
[1720503049487,2.403,3076.6,3075.5,0.615011]
[1720503049691,7.36,3077.3,3075.5,2.994411]
[1720503049885,2.3389,3077.2,3075.6,4.13147146]
[1720503050118,2.3389,3077.2,3075.7,1.74647528]
[1720503050321,2.3389,3077.2,3075.8,0.06500409]
[1720503050617,2.3389,3077.2,3075.9,0.55]
[1720503050820,2.3389,3077.2,3076.0,0.0650041]
[1720503050991,2.3389,3077.2,3076.1,0.55]
[1720503051198,2.3389,3077.2,3076.2,0.06500406]
[1720503051732,2.3389,3077.2,3076.1,0.55]
[1720503051880,2.3389,3077.2,3075.8,0.55]
[1720503051881,2.57279,3077.2,3075.8,0.55]
[1720503052521,2.3389,3077.2,3075.8,0.55]
[1720503052896,2.3389,3077.2,3075.5,0.55]
[1720503053091,2.3389,3077.2,3075.4,0.55]
[1720503055646,2.3389,3077.2,3075.3,1.697]
[1720503055830,2.4871,3077.0,3075.3,1.697]
[1720503055998,2.4871,3077.0,3074.9,1.7620182]
[1720503056737,2.2918,3076.8,3074.9,1.7620182]
[1720503057033,2.2918,3076.8,3075.0,0.55]
[1720503057259,2.2918,3076.6,3075.0,0.55]
[1720503057555,2.2918,3076.6,3074.6,0.67870959]
[1720503057854,2.2918,3076.6,3074.8,3.0]
[1720503058025,1.12638687,3076.5,3074.6,1.697]
[1720503058214,2.2589,3076.4,3074.6,1.697]
[1720503058754,2.3461,3076.2,3074.6,1.697]
[1720503059820,1.12648435,3076.1,3074.1,1.697]
[1720503060015,6.25399206,3076.5,3074.1,1.697]
[1720503060016,2.3461,3075.9,3074.1,1.697]
[1720503061128,2.3461,3075.9,3073.5,1.35741918]
[1720503061129,2.3605,3075.7,3073.7,1.86019577]
[1720503061332,1.126604,3075.6,3073.7,1.697]
[1720503061547,1.126604,3075.6,3073.8,1.13214736]
[1720503061860,0.3487104,3075.5,3073.8,1.13214736]
[1720503062360,0.3487104,3075.5,3074.1,1.697]
[1720503062561,2.3605,3075.7,3074.2,0.55]
[1720503062758,2.3605,3075.7,3074.6,1.697]
[1720503062933,2.3605,3075.7,3074.7,0.55]
[1720503063482,2.3605,3075.7,3074.8,0.0650328]
[1720503063623,2.3605,3075.7,3074.9,0.55]
[1720503063828,2.3605,3075.7,3074.9,0.06503027]
[1720503064359,2.59655,3075.7,3074.6,1.697]
[1720503064558,2.59655,3075.7,3074.2,3.0]
[1720503064780,2.59655,3075.7,3074.0,1.697]
[1720503066085,2.59655,3075.7,3074.1,1.68201972]
[1720503066381,2.59655,3075.7,3074.1,3.55]
[1720503066736,2.59655,3075.7,3074.2,3.0]
[1720503066944,2.59655,3075.7,3074.3,0.55]
[1720503067302,0.259655,3075.6,3074.3,0.55]
[1720503067602,0.259655,3075.6,3074.1,0.55]
[1720503067803,2.3605,3075.7,3074.2,1.13200845]
[1720503068108,2.3605,3075.7,3074.3,0.55]
[1720503068486,2.3605,3075.7,3074.1,0.55]
[1720503069198,2.3605,3075.7,3074.4,1.697]
[1720503069394,2.3605,3075.7,3074.5,0.55]
[1720503069916,2.3605,3075.7,3074.6,0.06503269]
[1720503070067,2.3605,3075.7,3074.7,0.55]
[1720503070568,2.3605,3075.7,3074.5,0.61503271]
[1720503071685,2.3605,3075.7,3074.5,0.55]
[1720503075003,2.3605,3075.7,3074.4,1.697]
[1720503075004,2.59655,3075.7,3074.4,1.697]
[1720503075208,2.59655,3075.7,3074.1,0.68024371]
[1720503075392,2.59655,3075.7,3074.1,1.13205866]
[1720503075994,2.59655,3075.7,3074.1,1.81230237]
[1720503076630,2.59655,3075.7,3074.2,0.55]
[1720503076835,0.259655,3075.6,3074.2,0.55]
[1720503077134,0.259655,3075.6,3074.3,1.13205704]
[1720503077135,2.3487,3075.5,3074.3,1.13205704]
[1720503077445,2.3487,3075.5,3074.4,0.55]
[1720503077825,2.3487,3075.5,3074.1,3.68059357]
[1720503077826,2.3487,3075.5,3074.2,0.55]
[1720503078003,2.3487,3075.5,3074.3,1.13207049]
[1720503078199,2.3487,3075.5,3074.4,0.55]
[1720503078748,2.58357,3075.5,3074.3,0.55]
[1720503079037,2.3487,3075.5,3074.3,0.55]
[1720503079598,2.3487,3075.5,3074.4,1.13201634]
[1720503079842,2.3487,3075.5,3074.2,4.23059357]
[1720503080034,2.3487,3075.5,3074.3,1.13201946]
[1720503080234,2.3487,3075.5,3074.4,0.55]
[1720503080644,2.3487,3075.5,3074.3,0.55]
[1720503080843,0.34058517,3075.4,3074.2,1.23059357]
[1720503081056,0.34058517,3075.4,3074.3,1.13203434]
[1720503081263,0.34058517,3075.4,3074.4,0.55]
[1720503081420,0.34058517,3075.4,3074.1,3.0]
[1720503081421,2.2715,3075.3,3074.1,3.0]
[1720503081621,2.2715,3075.3,3073.9,3.0]
[1720503081923,0.34058517,3075.4,3073.7,2.71891955]
[1720503081924,2.2715,3075.1,3073.7,0.68059357]
[1720503082123,2.2715,3075.1,3073.7,1.13226293]
[1720503082967,2.2715,3075.1,3073.5,0.68059357]
[1720503083269,2.2715,3075.1,3073.3,0.68075072]
[1720503083592,0.34058517,3075.4,3073.3,0.68075072]
[1720503083593,2.484,3074.9,3073.3,0.68075072]
[1720503083742,2.484,3074.9,3073.3,1.13234957]
[1720503084045,1.36096335,3075.4,3073.2,1.697]
[1720503084046,2.484,3074.7,3073.2,1.697]
[1720503084712,2.484,3074.7,3073.3,1.1974441]
[1720503084975,2.484,3074.7,3073.4,1.13238394]
[1720503085190,2.484,3074.7,3073.6,1.697]
[1720503087184,2.484,3074.7,3073.3,3.0]
[1720503087406,2.484,3074.7,3073.4,0.55]
[1720503087607,2.484,3074.7,3073.3,0.55]
[1720503089281,2.484,3074.7,3073.3,3.55]
[1720503089481,2.7324,3074.7,3073.3,0.55]
[1720503090579,2.484,3074.7,3073.3,3.55]
[1720503090807,2.484,3074.7,3073.3,0.55]
[1720503093116,2.484,3074.7,3073.6,1.697]
[1720503093323,2.484,3074.7,3073.7,0.61505409]
[1720503093820,2.484,3074.7,3073.8,0.06505412]
[1720503094602,2.484,3074.7,3074.0,1.697]
[1720503094779,2.4499,3075.2,3074.1,0.61504617]
[1720503096027,2.4499,3075.2,3074.1,0.55]
[1720503096396,3.46494852,3075.2,3074.0,0.55]
[1720503096823,3.46494852,3075.2,3073.9,0.55]
[1720503097200,2.3792,3075.0,3073.6,0.67963195]
[1720503097541,1.12689047,3074.9,3073.1,2.54760994]
[1720503097701,2.3792,3074.7,3073.1,0.16979052]
[1720503097887,2.3792,3074.5,3072.9,2.37663195]
[1720503098083,2.3792,3074.5,3073.0,1.13252131]
[1720503099026,2.3792,3074.5,3073.0,1.81215326]
[1720503099211,2.3792,3074.5,3073.7,1.697]
[1720503099389,2.3792,3074.5,3073.8,1.7473072]
[1720503099596,2.3792,3074.5,3073.9,1.13221277]
[1720503099916,2.70526816,3074.9,3074.0,0.55]
[1720503100116,2.70526816,3074.9,3074.0,0.61505011]
[1720503100425,2.70526816,3074.9,3074.0,0.55]
[1720503100612,2.70526816,3074.9,3073.9,0.55]
[1720503101623,2.70526816,3074.9,3073.8,3.0]
[1720503101930,2.97579498,3074.9,3073.7,3.0]
[1720503102092,2.70526816,3074.9,3073.8,1.68231741]
[1720503102290,2.70526816,3074.9,3073.8,3.55]
[1720503102499,2.70526816,3074.9,3073.9,1.13227716]
[1720503103031,2.70526816,3074.9,3073.8,3.55]
[1720503103205,2.70526816,3074.9,3073.9,1.13223865]
[1720503103399,2.97579498,3074.9,3073.9,1.13223865]
[1720503103627,2.3143,3074.8,3073.8,3.0]
[1720503103830,2.3143,3074.8,3073.6,1.69835965]
[1720503104028,2.6068495,3074.8,3073.7,1.13235567]
[1720503104201,2.3977,3074.6,3073.3,2.37976992]
[1720503104414,2.3977,3074.4,3073.4,0.55]
[1720503104741,2.3977,3074.4,3073.3,0.55]
[1720503104960,2.3977,3074.4,3073.4,1.13250738]
[1720503105128,2.3977,3074.4,3073.3,2.24835965]
[1720503105458,2.3977,3074.4,3073.3,0.55]
[1720503105916,2.3977,3074.4,3073.4,3.51291741]
[1720503106116,2.3977,3074.4,3073.5,1.13244702]
[1720503106364,2.3977,3074.4,3073.4,1.13244702]
[1720503106565,2.3977,3074.4,3073.5,1.13241097]
[1720503106849,2.3977,3074.4,3073.3,2.93047039]
[1720503107060,2.3977,3074.4,3073.4,1.1324124]
[1720503108227,2.63747,3074.4,3073.4,1.1324124]
[1720503108426,2.63747,3074.4,3073.3,0.55]
[1720503108964,2.63747,3074.4,3073.1,2.38047039]
[1720503109133,2.4192,3074.2,3073.1,0.68179986]
[1720503109332,0.23977,3074.4,3072.5,0.68179986]
[1720503109333,2.4192,3074.0,3072.5,0.68179986]
[1720503109537,3.5463208,3073.9,3072.5,1.13274286]
[1720503109867,2.4192,3073.9,3072.6,1.13274286]
[1720503110169,2.2731,3073.7,3072.1,2.38073635]
[1720503110319,2.2731,3073.7,3072.2,1.8146157]
[1720503110662,2.2731,3073.7,3072.3,1.13281584]
[1720503110962,0.22731,3073.6,3072.2,0.68179986]
[1720503111262,0.22731,3073.6,3072.4,0.06508657]
[1720503111552,2.2731,3073.7,3072.4,0.06508657]
[1720503111716,2.2731,3073.7,3072.5,2.8296875]
[1720503111922,2.2731,3073.7,3072.6,4.19776546]
[1720503112244,2.2731,3073.7,3072.6,3.61507403]
[1720503112417,2.2731,3073.7,3072.7,1.132579]
[1720503112623,2.2731,3073.7,3072.8,0.55]
[1720503112823,2.2731,3073.7,3072.6,3.55]
[1720503113068,2.2731,3073.7,3072.6,0.55]
[1720503113226,2.2731,3073.7,3072.7,1.13262955]
[1720503113423,2.2731,3073.7,3072.6,3.55]
[1720503113618,2.2731,3073.7,3072.6,0.55]
[1720503113820,0.22731,3073.6,3072.6,0.55]
[1720503114059,2.2731,3073.7,3072.6,0.55]
[1720503114237,2.2731,3073.7,3072.6,3.55]
[1720503114436,2.2731,3073.7,3072.6,0.55]
[1720503116148,2.2731,3073.7,3072.5,1.697]
[1720503116444,2.2731,3073.7,3072.1,4.697]
[1720503116645,2.3575,3073.5,3072.1,1.697]
[1720503117934,2.3575,3073.5,3072.2,0.06508741]
[1720503118133,2.3575,3073.5,3072.2,0.61508741]
[1720503118333,2.3575,3073.5,3072.3,0.06508736]
[1720503118533,2.59325,3073.5,3072.3,0.06508736]
[1720503119869,2.59325,3073.5,3072.2,0.55]
[1720503121084,2.59325,3073.5,3072.3,0.06508742]
[1720503122190,2.59325,3073.5,3072.2,0.55]
[1720503122556,2.59325,3073.5,3072.3,0.06508531]
[1720503124092,2.59325,3073.5,3072.2,0.55]
[1720503124277,0.259325,3073.4,3072.1,0.55]
[1720503124478,2.3575,3073.5,3072.4,1.697]
[1720503124664,2.3575,3073.5,3072.7,1.697]
[1720503124858,2.3575,3073.5,3072.8,0.06507136]
[1720503125060,2.3575,3073.5,3072.9,0.55]
[1720503125395,7.36,3074.4,3073.0,1.19756613]
[1720503125396,2.2839,3074.3,3073.0,1.19756613]
[1720503125593,2.2839,3074.3,3073.1,0.55]
[1720503125895,2.2839,3074.3,3073.2,0.06506474]
[1720503126055,2.2839,3074.3,3073.3,0.55]
[1720503126256,2.2839,3074.3,3073.4,0.06506474]
[1720503126496,2.51229,3074.3,3073.4,0.06506474]
[1720503127691,2.51229,3074.3,3072.9,0.06506475]
[1720503127869,2.51229,3074.3,3072.7,1.697]
[1720503128071,2.51229,3074.3,3072.8,1.74762762]
[1720503128271,2.2839,3074.3,3072.8,2.42814972]
[1720503128468,2.2839,3074.3,3072.9,1.1325565]
[1720503128667,2.2839,3074.3,3073.0,0.61506539]
[1720503129006,2.2839,3074.3,3073.1,1.697]
[1720503129192,2.2839,3074.3,3073.2,1.74752271]
[1720503129377,2.2839,3074.3,3073.3,0.06505969]
[1720503129573,2.2839,3074.3,3073.4,0.55]
[1720503129960,2.2839,3074.3,3073.2,0.55]
[1720503130276,2.51229,3074.3,3073.2,0.55]
[1720503130457,2.51229,3074.3,3072.9,0.55]
[1720503130663,2.51229,3074.3,3072.7,1.86449127]
[1720503130861,2.51229,3074.3,3072.7,4.86449127]
[1720503131170,2.2839,3074.3,3072.9,0.6805221]
[1720503131499,2.2839,3074.3,3073.1,1.697]
[1720503131990,2.2839,3074.3,3073.2,0.61506058]
[1720503132294,2.2839,3074.3,3073.3,0.0650606]
[1720503132523,2.2839,3074.3,3073.4,0.55]
[1720503133723,2.2839,3074.3,3073.1,1.697]
[1720503133861,2.2839,3074.3,3073.2,0.61506528]
[1720503134061,2.2839,3074.3,3073.2,0.55]
[1720503134899,2.2839,3074.3,3073.3,0.06506061]
[1720503135093,2.2839,3074.3,3073.4,0.55]
[1720503135293,2.2839,3074.3,3073.5,0.06505997]
[1720503136278,2.2839,3074.3,3073.6,0.55]
[1720503136479,2.2839,3074.3,3073.6,0.61505743]
[1720503137488,2.2839,3074.3,3073.6,0.55]
[1720503137712,2.2839,3074.3,3073.5,0.55]
[1720503138011,2.2839,3074.3,3073.6,0.06505743]
[1720503140034,2.2839,3074.3,3073.7,1.68228481]
[1720503140180,2.2839,3074.3,3073.8,0.06505534]
[1720503140380,2.2839,3074.3,3073.7,0.55]
[1720503140824,2.2839,3074.3,3073.5,0.55]
[1720503141887,2.2839,3074.3,3073.6,1.13234573]
[1720503142086,2.2839,3074.3,3073.7,0.55]
[1720503142282,2.2839,3074.3,3073.7,0.61505536]
[1720503142481,2.2839,3074.3,3073.8,0.06505537]
[1720503143493,2.4282,3075.4,3073.9,1.68222419]
[1720503143704,2.4282,3075.4,3074.1,1.697]
[1720503143884,2.4282,3075.4,3074.5,1.697]
[1720503144082,2.4282,3075.4,3074.6,0.61503526]
[1720503144317,2.4282,3075.4,3074.6,0.55]
[1720503144915,2.3771,3075.9,3074.7,0.06503531]
[1720503145082,2.3771,3075.9,3074.8,0.61502683]
[1720503145284,2.3771,3075.9,3074.8,0.06502683]
[1720503145490,2.3771,3075.9,3074.9,0.55]
[1720503145733,2.87460921,3075.9,3074.9,0.55]
[1720503145894,2.87460921,3075.9,3074.7,0.55]
[1720503146100,2.87460921,3075.9,3074.8,1.13183475]
[1720503146307,2.87460921,3075.9,3074.9,0.55]
[1720503146505,2.87460921,3075.9,3074.7,0.55]
[1720503146698,2.3771,3075.9,3074.7,0.55]
[1720503149198,2.3771,3075.9,3074.5,4.697]
[1720503149399,2.3771,3075.9,3074.5,1.697]
[1720503150613,2.3771,3075.9,3074.6,0.55]
[1720503151397,2.3771,3075.9,3074.6,0.61503545]
[1720503152138,2.87460921,3075.9,3074.3,0.16213437]
[1720503152442,2.87460921,3075.9,3074.1,1.86286844]
[1720503152606,2.87460921,3075.9,3074.1,1.697]
[1720503153532,2.87460921,3075.9,3074.2,0.06504328]
[1720503153715,2.97626013,3075.8,3074.1,1.697]
[1720503154050,2.429,3075.8,3074.1,1.697]
[1720503156724,2.3056,3075.6,3073.9,0.16120912]
[1720503156923,2.3056,3075.6,3073.7,1.697]
[1720503156924,2.3056,3075.4,3073.7,1.697]
[1720503157256,2.3056,3075.4,3073.8,0.55]
[1720503158744,2.3056,3075.4,3073.1,0.67831108]
[1720503158745,2.4257,3075.3,3073.1,0.67831108]
[1720503158943,2.4257,3075.3,3072.8,11.22172216]
[1720503158944,2.4257,3075.1,3072.9,1.697]
[1720503159102,2.4257,3074.9,3072.9,1.697]
[1720503159302,2.4257,3074.7,3072.9,1.697]
[1720503159953,2.4662,3074.5,3072.9,1.697]
[1720503161937,2.4662,3074.5,3073.0,0.55]
[1720503162418,2.4662,3074.5,3073.3,1.697]
[1720503162620,2.4662,3074.5,3073.4,0.55]
[1720503164226,2.4662,3074.5,3073.5,0.06505839]
[1720503164446,2.4662,3074.5,3073.6,0.55]
[1720503165082,2.4662,3074.5,3073.5,0.55]
[1720503165368,2.4662,3074.5,3073.5,0.61505851]
[1720503165523,2.4662,3074.5,3073.5,0.55]
[1720503165725,2.4662,3074.5,3073.5,3.55]
[1720503166222,2.4662,3074.5,3073.5,0.55]
[1720503167538,2.71282,3074.5,3073.3,1.697]
[1720503169180,2.71282,3074.5,3073.3,1.86321351]
[1720503170769,2.4662,3074.5,3073.4,0.06506846]
[1720503170980,2.4662,3074.5,3073.7,1.697]
[1720503171151,2.2947,3075.0,3074.1,1.697]
[1720503173086,2.2947,3075.0,3074.2,0.55]
[1720503173450,2.2947,3075.0,3074.3,0.06504759]
[1720503174973,2.2947,3075.0,3074.4,0.55]
[1720503175174,2.2717,3075.5,3074.5,1.76204066]
[1720503175380,2.2717,3075.5,3074.6,0.55]
[1720503175577,2.2717,3075.5,3074.7,0.06503596]
[1720503177681,2.2717,3075.5,3074.8,0.55]
[1720503178106,2.2717,3075.5,3074.8,0.06503241]